[Event "Late-Titled-Tuesday-Blitz-April-02-2024"]
[Site "Chess.com"]
[Date "2024.04.02"]
[Round "5"]
[White "protectiago"]
[Black "OlaaLa"]
[Result "0-1"]
[WhiteElo "2066"]
[BlackElo "2371"]
[TimeControl "180+1"]
[EndTime "14:53:16 PDT"]
[Termination "OlaaLa won on time"]

1. d4 {[%clk 0:02:55.3]} 1... f5 {[%clk 0:02:47.7]} 2. c4 {[%clk 0:02:53.6]}
2... Nf6 {[%clk 0:02:43.6]} 3. g3 {[%clk 0:02:49.7]} 3... g6 {[%clk 0:02:42.1]}
4. Bg2 {[%clk 0:02:49.3]} 4... Bg7 {[%clk 0:02:41.9]} 5. Nf3 {[%clk 0:02:48.5]}
5... d6 {[%clk 0:02:41.4]} 6. b3 {[%clk 0:02:47.6]} 6... O-O {[%clk 0:02:40.9]}
7. Bb2 {[%clk 0:02:46.6]} 7... c6 {[%clk 0:02:39.7]} 8. O-O {[%clk 0:02:46.1]}
8... h6 {[%clk 0:02:27.6]} 9. Qc2 {[%clk 0:02:18.1]} 9... g5 {[%clk 0:02:17.1]}
10. Rd1 {[%clk 0:02:00]} 10... Qe8 {[%clk 0:02:10.6]} 11. Nc3 {[%clk 0:01:28.9]}
11... e5 {[%clk 0:02:06]} 12. dxe5 {[%clk 0:01:28.4]} 12... dxe5 {[%clk
0:02:05]} 13. Nxe5 {[%clk 0:01:22.9]} 13... Be6 {[%clk 0:01:36.6]} 14. Na4
{[%clk 0:00:54.6]} 14... Na6 {[%clk 0:01:28.1]} 15. Ba3 {[%clk 0:00:33.1]} 15...
Ne4 {[%clk 0:01:19.4]} 16. Bxf8 {[%clk 0:00:24.9]} 16... Qxf8 {[%clk 0:01:12.9]}
17. f4 {[%clk 0:00:16.7]} 17... gxf4 {[%clk 0:01:00.3]} 18. gxf4 {[%clk
0:00:16.8]} 18... Qf6 {[%clk 0:00:59.5]} 19. Rac1 {[%clk 0:00:16.1]} 19... Qh4
{[%clk 0:00:52.7]} 20. Bxe4 {[%clk 0:00:15.4]} 20... Bxe5 {[%clk 0:00:46.1]} 21.
fxe5 {[%clk 0:00:13.8]} 21... fxe4 {[%clk 0:00:45.7]} 22. e3 {[%clk 0:00:12.5]}
22... Kh8 {[%clk 0:00:42.7]} 23. Kh1 {[%clk 0:00:10.3]} 23... Nb4 {[%clk
0:00:23.5]} 24. Qg2 {[%clk 0:00:09.6]} 24... Bg4 {[%clk 0:00:23.4]} 25. Rf1
{[%clk 0:00:08.4]} 25... Nd3 {[%clk 0:00:20.5]} 26. Rc2 {[%clk 0:00:07.3]} 26...
Nxe5 {[%clk 0:00:18.1]} 27. Nc3 {[%clk 0:00:06.5]} 27... Bf3 {[%clk 0:00:17.8]}
28. Rxf3 {[%clk 0:00:06.5]} 28... exf3 {[%clk 0:00:18]} 29. Qg3 {[%clk
0:00:06.1]} 29... Qxg3 {[%clk 0:00:15.4]} 30. hxg3 {[%clk 0:00:06.5]} 30... Ng4
{[%clk 0:00:16.2]} 31. Kg1 {[%clk 0:00:04.3]} 31... Re8 {[%clk 0:00:16.2]} 32.
e4 {[%clk 0:00:03.2]} 32... Rd8 {[%clk 0:00:16.6]} 0-1

[Event "Late-Titled-Tuesday-Blitz-April-02-2024"]
[Site "Chess.com"]
[Date "2024.04.02"]
[Round "5"]
[White "vladgoncharov"]
[Black "MasterSonnevanck23"]
[Result "1-0"]
[WhiteElo "2566"]
[BlackElo "2396"]
[TimeControl "180+1"]
[EndTime "14:53:18 PDT"]
[Termination "vladgoncharov won by resignation"]

1. d4 {[%clk 0:03:00.9]} 1... Nf6 {[%clk 0:02:58.4]} 2. c4 {[%clk 0:03:00.2]}
2... e6 {[%clk 0:02:58.1]} 3. Nc3 {[%clk 0:02:59.9]} 3... d5 {[%clk 0:02:57.8]}
4. Bg5 {[%clk 0:02:58.7]} 4... Be7 {[%clk 0:02:54.1]} 5. e3 {[%clk 0:02:58.8]}
5... Nbd7 {[%clk 0:02:49.7]} 6. Rc1 {[%clk 0:02:58]} 6... h6 {[%clk 0:02:48.8]}
7. Bh4 {[%clk 0:02:56.7]} 7... O-O {[%clk 0:02:45.4]} 8. cxd5 {[%clk 0:02:52.4]}
8... exd5 {[%clk 0:02:43]} 9. Bd3 {[%clk 0:02:51.8]} 9... c6 {[%clk 0:02:40.8]}
10. Nf3 {[%clk 0:02:50.1]} 10... Ne4 {[%clk 0:02:27.9]} 11. Bxe7 {[%clk
0:02:49.2]} 11... Qxe7 {[%clk 0:02:25.7]} 12. O-O {[%clk 0:02:44.2]} 12... Re8
{[%clk 0:02:08.7]} 13. a3 {[%clk 0:02:37.2]} 13... Nxc3 {[%clk 0:02:05.7]} 14.
Rxc3 {[%clk 0:02:36.1]} 14... Nf6 {[%clk 0:02:04.6]} 15. Ne5 {[%clk 0:02:34]}
15... Ne4 {[%clk 0:01:46.9]} 16. Bxe4 {[%clk 0:02:28.8]} 16... dxe4 {[%clk
0:01:45.4]} 17. b4 {[%clk 0:02:27.5]} 17... f6 {[%clk 0:01:37.9]} 18. Nc4 {[%clk
0:02:25.4]} 18... Be6 {[%clk 0:01:34.6]} 19. Na5 {[%clk 0:02:24.5]} 19... Bd5
{[%clk 0:01:32.3]} 20. Qh5 {[%clk 0:02:18.7]} 20... a6 {[%clk 0:01:09.5]} 21.
Rfc1 {[%clk 0:02:11.2]} 21... Rf8 {[%clk 0:01:04.5]} 22. Qf5 {[%clk 0:01:59.5]}
22... Qf7 {[%clk 0:01:00.5]} 23. Nc4 {[%clk 0:01:50.2]} 23... Bxc4 {[%clk
0:00:35.9]} 24. Rxc4 {[%clk 0:01:49.6]} 24... Rfe8 {[%clk 0:00:34.8]} 25. Rc5
{[%clk 0:01:48.8]} 25... Rad8 {[%clk 0:00:30.1]} 26. h3 {[%clk 0:01:46.7]} 26...
Rd6 {[%clk 0:00:21]} 27. a4 {[%clk 0:01:39.6]} 27... Qe6 {[%clk 0:00:18.8]} 28.
Qg6 {[%clk 0:01:31]} 28... Qf7 {[%clk 0:00:17.8]} 29. Qg4 {[%clk 0:01:24.2]}
29... Qe6 {[%clk 0:00:16.8]} 30. Qd1 {[%clk 0:01:21.9]} 30... Red8 {[%clk
0:00:16.5]} 31. b5 {[%clk 0:01:17.3]} 31... axb5 {[%clk 0:00:15.4]} 32. axb5
{[%clk 0:01:17.3]} 32... Kh7 {[%clk 0:00:14.1]} 33. bxc6 {[%clk 0:01:07.2]}
33... bxc6 {[%clk 0:00:12.3]} 34. Qg4 {[%clk 0:01:00.8]} 34... Qxg4 {[%clk
0:00:10.1]} 35. hxg4 {[%clk 0:01:00.6]} 35... Rd5 {[%clk 0:00:09.3]} 36. Rxc6
{[%clk 0:00:59.4]} 36... Rg5 {[%clk 0:00:08.7]} 37. f3 {[%clk 0:00:57.5]} 37...
exf3 {[%clk 0:00:08]} 38. gxf3 {[%clk 0:00:57.3]} 38... Ra8 {[%clk 0:00:06.6]}
39. Kf2 {[%clk 0:00:55.7]} 39... Ra2+ {[%clk 0:00:05.4]} 40. R1c2 {[%clk
0:00:55.2]} 40... Ra3 {[%clk 0:00:05.4]} 41. R6c5 {[%clk 0:00:50.7]} 41... Rxc5
{[%clk 0:00:03.5]} 42. dxc5 {[%clk 0:00:49.9]} 42... Ra7 {[%clk 0:00:04]} 43. c6
{[%clk 0:00:49.6]} 43... Rc7 {[%clk 0:00:03.1]} 44. e4 {[%clk 0:00:48.1]} 44...
Kg6 {[%clk 0:00:03.7]} 45. Ke3 {[%clk 0:00:48.3]} 45... Kf7 {[%clk 0:00:04.3]}
46. Kd4 {[%clk 0:00:48]} 46... Ke6 {[%clk 0:00:04.8]} 47. Kc5 {[%clk 0:00:48.1]}
1-0

[Event "Late-Titled-Tuesday-Blitz-April-02-2024"]
[Site "Chess.com"]
[Date "2024.04.02"]
[Round "5"]
[White "Mackster23"]
[Black "Eagle_2019"]
[Result "0-1"]
[WhiteElo "2625"]
[BlackElo "2872"]
[TimeControl "180+1"]
[EndTime "14:53:19 PDT"]
[Termination "Eagle_2019 won by resignation"]

1. e4 {[%clk 0:02:56.5]} 1... c6 {[%clk 0:02:52.7]} 2. d4 {[%clk 0:02:56.3]}
2... d5 {[%clk 0:02:50.6]} 3. e5 {[%clk 0:02:56.7]} 3... c5 {[%clk 0:02:48.8]}
4. Nf3 {[%clk 0:02:56.6]} 4... cxd4 {[%clk 0:02:48.2]} 5. Nxd4 {[%clk
0:02:57.5]} 5... Nc6 {[%clk 0:02:43.1]} 6. Nxc6 {[%clk 0:02:57.2]} 6... bxc6
{[%clk 0:02:44]} 7. Bd3 {[%clk 0:02:57]} 7... e6 {[%clk 0:02:32.4]} 8. O-O
{[%clk 0:02:56.2]} 8... Ne7 {[%clk 0:02:31.5]} 9. Re1 {[%clk 0:02:56.1]} 9...
Ng6 {[%clk 0:02:22.9]} 10. Nd2 {[%clk 0:02:52.4]} 10... Be7 {[%clk 0:02:18.5]}
11. Qg4 {[%clk 0:02:51.4]} 11... O-O {[%clk 0:02:15.9]} 12. Nf3 {[%clk
0:02:49.6]} 12... a5 {[%clk 0:02:10.7]} 13. c3 {[%clk 0:02:49]} 13... Ba6 {[%clk
0:02:08.7]} 14. Bc2 {[%clk 0:02:49.2]} 14... Qe8 {[%clk 0:02:00.8]} 15. h4
{[%clk 0:02:37.3]} 15... f5 {[%clk 0:01:32.7]} 16. exf6 {[%clk 0:02:36.5]} 16...
Bxf6 {[%clk 0:01:19.5]} 17. Rxe6 {[%clk 0:02:04.5]} 17... Bc8 {[%clk 0:01:14.8]}
18. Rxe8 {[%clk 0:01:42.6]} 18... Bxg4 {[%clk 0:01:13.7]} 19. Rxa8 {[%clk
0:01:42.8]} 19... Rxa8 {[%clk 0:01:12.9]} 20. Bg5 {[%clk 0:01:23.9]} 20... Bxf3
{[%clk 0:01:07.9]} 21. gxf3 {[%clk 0:01:23.1]} 21... Nxh4 {[%clk 0:01:04]} 22.
Bxf6 {[%clk 0:00:45.2]} 22... gxf6 {[%clk 0:01:01.5]} 23. f4 {[%clk 0:00:45.8]}
23... Kf7 {[%clk 0:00:51.3]} 24. Kf1 {[%clk 0:00:23.4]} 24... Rb8 {[%clk
0:00:44.2]} 25. b3 {[%clk 0:00:23.1]} 25... Rg8 {[%clk 0:00:43]} 26. Re1 {[%clk
0:00:21.2]} 26... Rg4 {[%clk 0:00:40.2]} 27. f5 {[%clk 0:00:14.1]} 27... Nf3
{[%clk 0:00:30.8]} 28. Re6 {[%clk 0:00:14.2]} 28... Ne5 {[%clk 0:00:27.9]} 29.
Rd6 {[%clk 0:00:09.1]} 29... h5 {[%clk 0:00:23.8]} 30. Rd8 {[%clk 0:00:09]}
30... Kg7 {[%clk 0:00:23.9]} 31. Bd1 {[%clk 0:00:06.1]} 31... Rg5 {[%clk
0:00:21.7]} 32. f4 {[%clk 0:00:05.8]} 32... Rxf5 {[%clk 0:00:22.1]} 33. Kg2
{[%clk 0:00:02.8]} 33... Nd3 {[%clk 0:00:22.1]} 34. Bc2 {[%clk 0:00:02.2]} 34...
Ne1+ {[%clk 0:00:22]} 35. Kg3 {[%clk 0:00:01.6]} 35... Nxc2 {[%clk 0:00:22.9]}
36. Rd7+ {[%clk 0:00:02]} 36... Kg6 {[%clk 0:00:22.9]} 0-1

[Event "Late-Titled-Tuesday-Blitz-April-02-2024"]
[Site "Chess.com"]
[Date "2024.04.02"]
[Round "5"]
[White "Franmu14"]
[Black "becemix"]
[Result "1/2-1/2"]
[WhiteElo "2667"]
[BlackElo "2476"]
[TimeControl "180+1"]
[EndTime "14:53:19 PDT"]
[Termination "Game drawn by repetition"]

1. e4 {[%clk 0:03:00.9]} 1... c5 {[%clk 0:02:56.2]} 2. Nc3 {[%clk 0:02:59.9]}
2... d6 {[%clk 0:02:51.9]} 3. Bb5+ {[%clk 0:03:00]} 3... Nc6 {[%clk 0:02:49.1]}
4. d4 {[%clk 0:02:59.8]} 4... cxd4 {[%clk 0:02:48.9]} 5. Qxd4 {[%clk 0:03:00.7]}
5... Bd7 {[%clk 0:02:49.1]} 6. Bxc6 {[%clk 0:03:01.2]} 6... Bxc6 {[%clk
0:02:50]} 7. b3 {[%clk 0:03:01.1]} 7... Nf6 {[%clk 0:02:49.5]} 8. Bb2 {[%clk
0:03:01.1]} 8... g6 {[%clk 0:02:49.6]} 9. O-O-O {[%clk 0:03:01.2]} 9... Bg7
{[%clk 0:02:49.9]} 10. Kb1 {[%clk 0:03:01.7]} 10... O-O {[%clk 0:02:49.7]} 11.
Qe3 {[%clk 0:03:01.5]} 11... Qa5 {[%clk 0:02:43.9]} 12. f3 {[%clk 0:03:00.9]}
12... b5 {[%clk 0:02:38.1]} 13. g4 {[%clk 0:02:59.5]} 13... b4 {[%clk
0:02:34.8]} 14. Nce2 {[%clk 0:02:59.3]} 14... Qc7 {[%clk 0:02:02.8]} 15. h4
{[%clk 0:02:52.1]} 15... Rfc8 {[%clk 0:01:35.2]} 16. Nd4 {[%clk 0:02:51.1]}
16... e5 {[%clk 0:01:31.9]} 17. Nxc6 {[%clk 0:02:50.8]} 17... Qxc6 {[%clk
0:01:32.8]} 18. Rh2 {[%clk 0:02:43.7]} 18... h5 {[%clk 0:01:32.5]} 19. gxh5
{[%clk 0:02:39.3]} 19... Nxh5 {[%clk 0:01:32]} 20. Rhd2 {[%clk 0:02:39.5]} 20...
Nf4 {[%clk 0:01:25.2]} 21. Qf2 {[%clk 0:02:34.2]} 21... Rd8 {[%clk 0:01:12]} 22.
Ne2 {[%clk 0:02:32.3]} 22... Bh6 {[%clk 0:01:11.7]} 23. Ng3 {[%clk 0:02:16.2]}
23... Nh3 {[%clk 0:01:07.4]} 24. Qh2 {[%clk 0:02:13.4]} 24... Bxd2 {[%clk
0:00:59.1]} 25. Rxd2 {[%clk 0:02:14.3]} 25... Nf4 {[%clk 0:00:59.6]} 26. h5
{[%clk 0:02:13.5]} 26... Kg7 {[%clk 0:00:55.2]} 27. Nf5+ {[%clk 0:02:11.4]}
27... gxf5 {[%clk 0:00:45.2]} 28. Qxf4 {[%clk 0:02:10.9]} 28... Rg8 {[%clk
0:00:38.9]} 29. Qxf5 {[%clk 0:02:03.8]} 29... Kf8 {[%clk 0:00:37.6]} 30. a3
{[%clk 0:01:52.5]} 30... a5 {[%clk 0:00:30.9]} 31. Qf6 {[%clk 0:01:41.5]} 31...
Rc8 {[%clk 0:00:20.1]} 32. Ka2 {[%clk 0:01:30.4]} 32... a4 {[%clk 0:00:18.5]}
33. h6 {[%clk 0:01:16.1]} 33... axb3+ {[%clk 0:00:13.4]} 34. cxb3 {[%clk
0:01:15.6]} 34... bxa3 {[%clk 0:00:11.3]} 35. Bxa3 {[%clk 0:01:00]} 35... Ra8
{[%clk 0:00:11.1]} 36. h7 {[%clk 0:00:46.3]} 36... Rxa3+ {[%clk 0:00:10.9]} 37.
Kxa3 {[%clk 0:00:46.3]} 37... Qc1+ {[%clk 0:00:10.8]} 38. Ka4 {[%clk 0:00:46.5]}
38... Qc6+ {[%clk 0:00:09.3]} 39. Ka5 {[%clk 0:00:37.5]} 39... Qc5+ {[%clk
0:00:08.9]} 40. Ka6 {[%clk 0:00:37.2]} 40... Qc6+ {[%clk 0:00:09.3]} 41. Ka5
{[%clk 0:00:37.7]} 41... Qc5+ {[%clk 0:00:09.6]} 42. Ka4 {[%clk 0:00:38.5]}
42... Qc6+ {[%clk 0:00:10.1]} 43. Kb4 {[%clk 0:00:38.1]} 43... Qc5+ {[%clk
0:00:10.1]} 44. Ka4 {[%clk 0:00:38.9]} 44... Qc6+ {[%clk 0:00:10.7]} 1/2-1/2

[Event "Late-Titled-Tuesday-Blitz-April-02-2024"]
[Site "Chess.com"]
[Date "2024.04.02"]
[Round "5"]
[White "PapaieDudu"]
[Black "Janh4"]
[Result "1-0"]
[WhiteElo "2389"]
[BlackElo "2170"]
[TimeControl "180+1"]
[EndTime "14:53:19 PDT"]
[Termination "PapaieDudu won on time"]

1. Nf3 {[%clk 0:03:00.4]} 1... d5 {[%clk 0:02:59.2]} 2. d4 {[%clk 0:03:00.3]}
2... Nc6 {[%clk 0:02:59.4]} 3. c4 {[%clk 0:03:00.9]} 3... Bg4 {[%clk 0:02:59.4]}
4. Nc3 {[%clk 0:03:00.9]} 4... e6 {[%clk 0:02:58.6]} 5. e3 {[%clk 0:03:00.6]}
5... Nf6 {[%clk 0:02:58.7]} 6. Bd3 {[%clk 0:03:00.6]} 6... Bb4 {[%clk
0:02:59.1]} 7. O-O {[%clk 0:02:59.4]} 7... O-O {[%clk 0:02:57.7]} 8. Qc2 {[%clk
0:02:59]} 8... Bh5 {[%clk 0:02:51.8]} 9. Ne5 {[%clk 0:02:57.8]} 9... dxc4 {[%clk
0:02:35.7]} 10. Nxc4 {[%clk 0:02:57.6]} 10... Bg6 {[%clk 0:02:30.6]} 11. Rd1
{[%clk 0:02:54.9]} 11... Qe7 {[%clk 0:02:25.7]} 12. a3 {[%clk 0:02:53.5]} 12...
Bxc3 {[%clk 0:02:11.3]} 13. bxc3 {[%clk 0:02:53.4]} 13... Rad8 {[%clk
0:02:08.7]} 14. e4 {[%clk 0:02:53.3]} 14... e5 {[%clk 0:01:59.4]} 15. d5 {[%clk
0:02:52.2]} 15... Nb8 {[%clk 0:01:59.6]} 16. a4 {[%clk 0:02:51.8]} 16... Rfe8
{[%clk 0:01:57.4]} 17. Ba3 {[%clk 0:02:50.2]} 17... Qd7 {[%clk 0:01:53]} 18. Ne3
{[%clk 0:02:16.7]} 18... Nh5 {[%clk 0:01:44.8]} 19. Bb5 {[%clk 0:02:11.9]} 19...
Qc8 {[%clk 0:01:34.9]} 20. Bxe8 {[%clk 0:02:11]} 20... Rxe8 {[%clk 0:01:35.8]}
21. g3 {[%clk 0:02:07.9]} 21... Qh3 {[%clk 0:01:15.3]} 22. Ng2 {[%clk 0:02:02]}
22... Nf6 {[%clk 0:01:06]} 23. f3 {[%clk 0:02:00.8]} 23... Nbd7 {[%clk
0:01:02.6]} 24. Qe2 {[%clk 0:01:59.9]} 24... Nb6 {[%clk 0:00:52.6]} 25. a5
{[%clk 0:01:59.5]} 25... Nc8 {[%clk 0:00:46.1]} 26. Bc5 {[%clk 0:01:57.1]} 26...
b6 {[%clk 0:00:45]} 27. axb6 {[%clk 0:01:56.3]} 27... axb6 {[%clk 0:00:45.9]}
28. Bb4 {[%clk 0:01:54.2]} 28... Bh5 {[%clk 0:00:37.6]} 29. Ra8 {[%clk
0:01:52.5]} 29... g5 {[%clk 0:00:29.7]} 30. d6 {[%clk 0:01:51.2]} 30... Nxd6
{[%clk 0:00:25.4]} 31. Rxe8+ {[%clk 0:01:38.8]} 31... Nfxe8 {[%clk 0:00:20.3]}
32. g4 {[%clk 0:01:38.7]} 32... Bg6 {[%clk 0:00:16.7]} 33. Ne3 {[%clk
0:01:34.7]} 33... h5 {[%clk 0:00:14.2]} 34. Nf5 {[%clk 0:01:30.4]} 34... Bxf5
{[%clk 0:00:11.6]} 35. exf5 {[%clk 0:01:30.7]} 35... hxg4 {[%clk 0:00:11.1]} 36.
fxg4 {[%clk 0:01:28.6]} 36... e4 {[%clk 0:00:11.5]} 37. c4 {[%clk 0:00:58.1]}
37... c5 {[%clk 0:00:09.8]} 38. Be1 {[%clk 0:00:58.5]} 38... Qb3 {[%clk
0:00:07.4]} 39. Bg3 {[%clk 0:00:51.4]} 39... Nxc4 {[%clk 0:00:06.4]} 40. Rd8
{[%clk 0:00:49.2]} 40... Kf8 {[%clk 0:00:05.6]} 41. Qxe4 {[%clk 0:00:43.6]}
41... Qb5 {[%clk 0:00:01.5]} 42. f6 {[%clk 0:00:38.2]} 1-0

[Event "Late-Titled-Tuesday-Blitz-April-02-2024"]
[Site "Chess.com"]
[Date "2024.04.02"]
[Round "5"]
[White "JERO-8914"]
[Black "karinachess1"]
[Result "0-1"]
[WhiteElo "2446"]
[BlackElo "2614"]
[TimeControl "180+1"]
[EndTime "14:53:20 PDT"]
[Termination "karinachess1 won on time"]

1. e4 {[%clk 0:03:00]} 1... e5 {[%clk 0:02:59.2]} 2. Nf3 {[%clk 0:02:59.7]} 2...
Nc6 {[%clk 0:02:59.9]} 3. c4 {[%clk 0:02:59.5]} 3... Nf6 {[%clk 0:02:53.3]} 4.
Nc3 {[%clk 0:02:59.3]} 4... h6 {[%clk 0:02:46.1]} 5. d4 {[%clk 0:02:51.8]} 5...
exd4 {[%clk 0:02:45.5]} 6. Nxd4 {[%clk 0:02:52.7]} 6... Bb4 {[%clk 0:02:45]} 7.
f3 {[%clk 0:02:34.3]} 7... O-O {[%clk 0:02:42]} 8. Be3 {[%clk 0:02:32]} 8... d5
{[%clk 0:02:37.5]} 9. cxd5 {[%clk 0:02:29.6]} 9... Nxd4 {[%clk 0:02:10.2]} 10.
Qxd4 {[%clk 0:02:28.5]} 10... Ba5 {[%clk 0:02:01.1]} 11. O-O-O {[%clk
0:02:27.8]} 11... Qe7 {[%clk 0:01:53.1]} 12. Qc5 {[%clk 0:02:22.9]} 12... Qxc5
{[%clk 0:01:34.8]} 13. Bxc5 {[%clk 0:02:23.8]} 13... Re8 {[%clk 0:01:35.4]} 14.
Bb5 {[%clk 0:02:21.6]} 14... Bd7 {[%clk 0:01:34.7]} 15. Bxd7 {[%clk 0:02:15.5]}
15... Nxd7 {[%clk 0:01:35.6]} 16. Bf2 {[%clk 0:02:11.7]} 16... Ne5 {[%clk
0:01:26.6]} 17. Bg3 {[%clk 0:02:00.5]} 17... a6 {[%clk 0:01:19.2]} 18. Ne2
{[%clk 0:01:49.6]} 18... Nc4 {[%clk 0:01:08.7]} 19. Rd3 {[%clk 0:01:43]} 19...
Rac8 {[%clk 0:00:51.4]} 20. b3 {[%clk 0:00:38.3]} 20... Ne5 {[%clk 0:00:51.3]}
21. Bxe5 {[%clk 0:00:35.7]} 21... Rxe5 {[%clk 0:00:52.2]} 22. Kb2 {[%clk
0:00:27.5]} 22... f5 {[%clk 0:00:27.4]} 23. Ng3 {[%clk 0:00:24]} 23... g6 {[%clk
0:00:27.6]} 24. Rc1 {[%clk 0:00:23.2]} 24... Rce8 {[%clk 0:00:25.6]} 25. d6
{[%clk 0:00:21.3]} 25... cxd6 {[%clk 0:00:23.1]} 26. Rxd6 {[%clk 0:00:22.2]}
26... Kg7 {[%clk 0:00:20.5]} 27. Rd7+ {[%clk 0:00:21.4]} 27... R8e7 {[%clk
0:00:16.8]} 28. Rcd1 {[%clk 0:00:21.4]} 28... fxe4 {[%clk 0:00:13.9]} 29. Nxe4
{[%clk 0:00:20.8]} 29... Re6 {[%clk 0:00:10.9]} 30. Rxe7+ {[%clk 0:00:20.1]}
30... Rxe7 {[%clk 0:00:11.8]} 0-1

[Event "Late-Titled-Tuesday-Blitz-April-02-2024"]
[Site "Chess.com"]
[Date "2024.04.02"]
[Round "5"]
[White "NovakRatko"]
[Black "RebelJohnny"]
[Result "0-1"]
[WhiteElo "2437"]
[BlackElo "2610"]
[TimeControl "180+1"]
[EndTime "14:53:24 PDT"]
[Termination "RebelJohnny won on time"]

1. d4 {[%clk 0:02:58.4]} 1... d5 {[%clk 0:02:57]} 2. c4 {[%clk 0:02:57.7]} 2...
dxc4 {[%clk 0:02:57.9]} 3. e4 {[%clk 0:02:55.9]} 3... Nf6 {[%clk 0:02:57.9]} 4.
e5 {[%clk 0:02:54.2]} 4... Nd5 {[%clk 0:02:58.2]} 5. Bxc4 {[%clk 0:02:54.6]}
5... Nb6 {[%clk 0:02:59]} 6. Bb3 {[%clk 0:02:55.2]} 6... Nc6 {[%clk 0:02:59.8]}
7. Ne2 {[%clk 0:02:54.7]} 7... Bf5 {[%clk 0:02:58.9]} 8. O-O {[%clk 0:02:54.1]}
8... e6 {[%clk 0:02:59.3]} 9. a4 {[%clk 0:02:53.3]} 9... a5 {[%clk 0:02:58.4]}
10. Nbc3 {[%clk 0:02:50.8]} 10... Nb4 {[%clk 0:02:58.6]} 11. Be3 {[%clk
0:02:34.3]} 11... Be7 {[%clk 0:02:48.2]} 12. Ng3 {[%clk 0:02:27.9]} 12... Bg6
{[%clk 0:02:47.8]} 13. f4 {[%clk 0:02:26.6]} 13... N6d5 {[%clk 0:02:41.5]} 14.
Bd2 {[%clk 0:02:15.8]} 14... Qd7 {[%clk 0:02:26.2]} 15. f5 {[%clk 0:02:14]}
15... exf5 {[%clk 0:02:18.4]} 16. Nxd5 {[%clk 0:02:12.3]} 16... Nxd5 {[%clk
0:02:18.7]} 17. Qf3 {[%clk 0:01:58]} 17... Nb4 {[%clk 0:01:57.3]} 18. Bc3 {[%clk
0:01:56.9]} 18... O-O {[%clk 0:00:54.5]} 19. Rae1 {[%clk 0:01:49.6]} 19... Rad8
{[%clk 0:00:32.8]} 20. e6 {[%clk 0:01:24.5]} 20... Qc6 {[%clk 0:00:31.7]} 21.
Nxf5 {[%clk 0:01:12.9]} 21... Bxf5 {[%clk 0:00:23.1]} 22. Qxf5 {[%clk
0:00:31.9]} 22... fxe6 {[%clk 0:00:06.4]} 23. Qxe6+ {[%clk 0:00:19.4]} 23...
Qxe6 {[%clk 0:00:05.9]} 24. Rxe6 {[%clk 0:00:12.7]} 24... Rxf1+ {[%clk
0:00:06.3]} 25. Kxf1 {[%clk 0:00:12.9]} 25... Kf8 {[%clk 0:00:07.2]} 26. Ke2
{[%clk 0:00:07.1]} 26... Bf6 {[%clk 0:00:07.6]} 27. Ke3 {[%clk 0:00:06.6]} 27...
Nd5+ {[%clk 0:00:06.1]} 28. Ke4 {[%clk 0:00:03]} 28... c6 {[%clk 0:00:03.3]} 0-1

[Event "Late-Titled-Tuesday-Blitz-April-02-2024"]
[Site "Chess.com"]
[Date "2024.04.02"]
[Round "5"]
[White "maracayo"]
[Black "HipsterChess22"]
[Result "1/2-1/2"]
[WhiteElo "2395"]
[BlackElo "2200"]
[TimeControl "180+1"]
[EndTime "14:53:24 PDT"]
[Termination "Game drawn by repetition"]

1. e4 {[%clk 0:03:00.9]} 1... c6 {[%clk 0:02:59]} 2. Nf3 {[%clk 0:02:59.5]} 2...
d5 {[%clk 0:02:58.8]} 3. d3 {[%clk 0:02:59.7]} 3... dxe4 {[%clk 0:02:51.7]} 4.
dxe4 {[%clk 0:02:59.6]} 4... Qxd1+ {[%clk 0:02:51.4]} 5. Kxd1 {[%clk 0:03:00.5]}
5... Bg4 {[%clk 0:02:50]} 6. Bd3 {[%clk 0:03:00.1]} 6... e5 {[%clk 0:02:39.5]}
7. Ke2 {[%clk 0:02:59.2]} 7... Nd7 {[%clk 0:02:37.3]} 8. Be3 {[%clk 0:02:57.3]}
8... Bc5 {[%clk 0:02:32.8]} 9. Nd2 {[%clk 0:02:56.3]} 9... Ne7 {[%clk
0:02:25.1]} 10. h3 {[%clk 0:02:53.8]} 10... Bxf3+ {[%clk 0:02:22.7]} 11. Nxf3
{[%clk 0:02:49.1]} 11... f6 {[%clk 0:02:21]} 12. Rhd1 {[%clk 0:02:33.2]} 12...
O-O-O {[%clk 0:02:19.3]} 13. a4 {[%clk 0:02:30.5]} 13... Bxe3 {[%clk 0:02:18.1]}
14. Kxe3 {[%clk 0:02:29.6]} 14... Nc5 {[%clk 0:02:04.5]} 15. b4 {[%clk 0:02:26]}
15... Nxd3 {[%clk 0:02:03.1]} 16. cxd3 {[%clk 0:02:26.3]} 16... Ng6 {[%clk
0:01:54.4]} 17. g3 {[%clk 0:02:24.8]} 17... Rd7 {[%clk 0:01:48.4]} 18. Ra3
{[%clk 0:02:10.2]} 18... Rhd8 {[%clk 0:01:47]} 19. Rc1 {[%clk 0:02:06.3]} 19...
Kb8 {[%clk 0:01:45.7]} 20. b5 {[%clk 0:02:03.4]} 20... cxb5 {[%clk 0:01:42.7]}
21. axb5 {[%clk 0:02:04.3]} 21... Nf8 {[%clk 0:01:40.9]} 22. b6 {[%clk
0:01:44.9]} 22... axb6 {[%clk 0:01:31.9]} 23. Rb1 {[%clk 0:01:26]} 23... Ne6
{[%clk 0:01:23.5]} 24. Rxb6 {[%clk 0:01:12.7]} 24... Nd4 {[%clk 0:01:20.4]} 25.
Nxd4 {[%clk 0:00:49.9]} 25... Rxd4 {[%clk 0:01:17.7]} 26. f4 {[%clk 0:00:46.2]}
26... exf4+ {[%clk 0:00:48.9]} 27. gxf4 {[%clk 0:00:44.7]} 27... R8d6 {[%clk
0:00:44.1]} 28. Rxd6 {[%clk 0:00:26.4]} 28... Rxd6 {[%clk 0:00:43.6]} 29. e5
{[%clk 0:00:25.1]} 29... fxe5 {[%clk 0:00:39.6]} 30. fxe5 {[%clk 0:00:26]} 30...
Rh6 {[%clk 0:00:39]} 31. Ke4 {[%clk 0:00:24.8]} 31... Rxh3 {[%clk 0:00:32.8]}
32. e6 {[%clk 0:00:20]} 32... Kc7 {[%clk 0:00:31.6]} 33. Rc3+ {[%clk 0:00:14.6]}
33... Kd6 {[%clk 0:00:29.2]} 34. Rb3 {[%clk 0:00:15.5]} 34... Kxe6 {[%clk
0:00:24.6]} 35. Rb6+ {[%clk 0:00:15]} 35... Kf7 {[%clk 0:00:20.5]} 36. Rxb7+
{[%clk 0:00:15.9]} 36... Kf6 {[%clk 0:00:20.6]} 37. Rb6+ {[%clk 0:00:15.9]}
37... Kf7 {[%clk 0:00:20.4]} 38. Rb7+ {[%clk 0:00:16.2]} 38... Kf6 {[%clk
0:00:20.5]} 39. Rb6+ {[%clk 0:00:16.7]} 39... Kf7 {[%clk 0:00:20.6]} 40. Rb7+
{[%clk 0:00:16.8]} 1/2-1/2